Cogmind - Beta 12 *** ADVENTURER MODE // 2023.05.21 @ 12:28:48 Player: Ms. V3-11A Result: Destroyed by AJ-T8F(z) with Makeshift Spear Performance ------------- Evolutions (3) 1500 Regions Visited (15) 3000 Robots Destroyed (169) 845 Value Destroyed (8640) 8640 Prototype IDs (6) 120 Alien Tech Used (0) 0 Bonus (4331) 4331 TOTAL SCORE: 18436 Bonus ------- High Alert Combat Kills 1798 Follower Combat Kills 642 Entered Garrisons 600 Used RIF Installer 2000 Friendly Fire -709 Cogmind --------- Core Integrity 0/700 Matter 159/300 Energy 100/100 System Corruption 10% Temperature Cool (0) Movement Walking (120) Location -7/Zion Parts ------- > --- POWER (2) -------- (None) > --- PROPULSION (2) --- Aluminum Leg > --- UTILITY (6) ------ (None) > --- WEAPON (3) ------- Great Maul > --- INVENTORY (5) ---- Relay Coupler [NC] (33) Relay Coupler [Hunter] (28) Peak State ------------ > --- POWER ------------ Antimatter Reactor Particle Reactor > --- PROPULSION ------- Improved Carbon-fiber Leg Improved Titanium Leg > --- UTILITY ---------- Advanced Heat Sink High-capacity Storage Unit Improved Particle Charger Improved Particle Charger Improved Light Armor Plating Improved Shield Generator > --- WEAPON ----------- Phase Gun Phase Cannon Matter Neutralizer > --- INVENTORY -------- Antimatter Reactor Carbon-fiber Leg Carbon-fiber Leg High-capacity Battery Long-range Sensor Array Improved Signal Interpreter Hacking Suite Relay Coupler [NC] Relay Coupler [NC] Relay Coupler [Grunt] Relay Coupler [Grunt] Relay Coupler [Grunt] Relay Coupler [Sentry] Relay Coupler [Hunter] Phase Cannon KE Penetrator Heavy Missile Launcher Improved Remote Datajack Powered Hammer [Rating: 72] Favorites ----------- Power Antimatter Reactor Engine Cooled Ion Engine Power Core Micro Fission Core Reactor Antimatter Reactor Propulsion Carbon-fiber Leg Leg Carbon-fiber Leg Utility Advanced Heat Sink Device Advanced Heat Sink Storage High-capacity Storage Unit Processor Improved Signal Interpreter Hackware Relay Coupler [NC] Protection Improved Light Armor Plating Weapon Pulse Rifle Energy Gun Pulse Rifle Energy Cannon Phase Cannon Ballistic Gun KE Penetrator Launcher Heavy Missile Launcher Special Weapon Improved Remote Datajack Impact Weapon Powered Hammer Build | -11 -10 -9 -9 -9 -8 -8 -8 -8 -8 -7 -7 -7 -7 -7 -7 ------- Run | Jun Mat Mat Min Exi Min Mat Gar Mat Gar Fac Gar Fac Low Low Zio Slots Evolved 6 | . . 2 . . . 2 . . . 2 . . . . . Power 1 | . . . . . . . . . . 1 . . . . . Propulsion . | . . . . . . . . . . . . . . . . Utility 4 | . . 2 . . . 1 . . . 1 . . . . . Weapon 1 | . . . . . . 1 . . . . . . . . . Parts Attached 168 | . 4 23 . 1 1 5 20 37 9 3 9 18 27 . 11 Power 20 | . 1 2 . . . . 1 1 1 2 3 3 4 . 2 Engine 8 | . . 2 . . . . . . 1 1 . 1 1 . 2 Core 8 | . 1 . . . . . 1 1 . 1 . 2 2 . . Reactor 4 | . . . . . . . . . . . 3 . 1 . . Propulsion 33 | . . 2 . . . . 5 9 2 . 1 3 6 . 5 Treads . | . . . . . . . . . . . . . . . . Leg 33 | . . 2 . . . . 5 9 2 . 1 3 6 . 5 Wheel . | . . . . . . . . . . . . . . . . Hover . | . . . . . . . . . . . . . . . . Flight . | . . . . . . . . . . . . . . . . Utility 58 | . 2 9 . 1 1 3 6 12 1 1 3 8 11 . . Device 32 | . 1 5 . . 1 3 4 6 . . 2 4 6 . . Storage 2 | . 1 . . 1 . . . . . . . . . . . Processor 3 | . . . . . . . . . . . . 2 1 . . Hackware 9 | . . . . . . . . 2 . 1 . 2 4 . . Protection 12 | . . 4 . . . . 2 4 1 . 1 . . . . Artifact . | . . . . . . . . . . . . . . . . Weapon 57 | . 1 10 . . . 2 8 15 5 . 2 4 6 . 4 Energy Gun 17 | . 1 7 . . . 1 3 3 . . 1 1 . . . Energy Cannon 17 | . . 2 . . . 1 3 3 5 . 1 1 1 . . Ballistic Gun 5 | . . . . . . . . 3 . . . 1 . . 1 Ballistic Cannon . | . . . . . . . . . . . . . . . . Launcher 8 | . . 1 . . . . 2 3 . . . 1 1 . . Special Weapon 6 | . . . . . . . . 3 . . . . 3 . . Impact Weapon 4 | . . . . . . . . . . . . . 1 . 3 Slashing Weapon . | . . . . . . . . . . . . . . . . Piercing Weapon . | . . . . . . . . . . . . . . . . Special Melee Weapon . | . . . . . . . . . . . . . . . . Unidentified Prototypes 3 | . . 2 . . . . . . . 1 . . . . . Corrupted Parts 1 | . . . . . . . . . 1 . . . . . . System Corruption 3 | . . . . . . . . . 3 . . . . . . Parts Lost 47 | . . 3 . . . . 2 2 2 . . 13 8 . 17 Power 9 | . . . . . . . . . 1 . . 2 3 . 3 Propulsion 6 | . . . . . . . . 1 . . . 1 1 . 3 Utility 19 | . . 1 . . . . 2 1 . . . 7 2 . 6 Weapon 13 | . . 2 . . . . . . 1 . . 3 2 . 5 Highest Loss Streak 13 | . . 1 . . . . 1 1 1 . . 7 4 . 13 To Critical Strikes 2 | . . . . . . . . . . . . . 1 . 1 Average Slot Usage (%) 98 | . 95 99 100 100 100 100 99 98 98 91 100 93 97 100 86 Engine 4 | . 4 9 11 11 11 9 6 . 4 2 3 . 5 7 4 Core 3 | . 10 1 . . . . 2 9 3 3 3 . 2 . . Reactor 3 | . . . . . . . . . . . 7 14 6 7 4 Leg 17 | . 28 22 22 22 22 18 18 17 18 15 15 14 14 15 14 Device 22 | . 10 22 22 22 22 27 26 23 27 23 23 20 14 15 13 Storage 7 | . 14 11 11 11 11 9 9 9 9 7 7 7 . . . Processor 2 | . . . . . . . . . . . . . 12 15 13 Hackware 4 | . . . . . . . . 3 . 7 7 6 15 15 13 Protection 6 | . . 10 11 11 11 9 8 9 8 7 7 5 . . . Energy Gun 9 | . 28 18 22 22 22 23 18 9 1 . 3 6 . . . Energy Cannon 10 | . . 3 . . . 3 8 11 18 23 19 12 7 7 6 Ballistic Gun 1 | . . . . . . . . 4 7 . . 1 . . 1 Special Weapon 1 | . . . . . . . . . . . . . 6 7 4 Naked Turns . | . . . . . . . . . . . . . . . . Heaviest Build 110 | 14 31 39 39 59 59 66 73 73 82 90 110 110 73 40 40 Greatest Support 40 | 20 20 26 20 20 20 20 25 30 30 30 30 38 40 40 40 Greatest Overweight (x) 3 | . 1 1 1 2 2 3 3 3 2 2 3 3 2 . . Average Overweight (x) 1 | . . 1 1 1 2 3 2 2 2 2 2 2 . . . Largest Inventory Capacity 20 | 8 15 15 15 20 20 20 20 20 20 20 20 20 20 5 5 Average Capacity 17 | 8 11 15 15 17 20 20 20 20 20 20 20 20 7 5 5 Most Carried 20 | 5 12 15 15 15 16 20 20 20 20 20 20 20 19 5 5 Average Carried 16 | 5 7 12 15 15 15 17 19 19 19 19 19 19 6 5 4 Final Capacity 20 | 8 15 15 15 20 20 20 20 20 20 20 20 20 5 5 5 Final Carried 20 | 4 12 15 15 15 16 20 20 20 20 20 20 19 5 5 2 Class Distribution -------------------- 62% | Bothacker-Mutant 11% | Bothacker-Tank 8% | Mutant 7% | Scavenger-Mutant 3% | Tank Dominant Class ---------------- Mutant | -10/Materials Mutant | -9/Materials Scavenger-Mutant | -9/Mines Scavenger-Mutant | -9/Exiles Scavenger-Mutant | -8/Mines Scavenger-Tank | -8/Materials Bothacker-Mutant | -8/Garrison Bothacker-Mutant | -8/Materials Bothacker-Mutant | -8/Garrison Bothacker-Tank | -7/Factory Bothacker-Mutant | -7/Garrison Bothacker-Mutant | -7/Factory Bothacker-Mutant | -7/Lower Caves Bothacker-Mutant | -7/Lower Caves Bothacker-Mutant | -7/Zion Resources | -11 -10 -9 -9 -9 -8 -8 -8 -8 -8 -7 -7 -7 -7 -7 -7 ----------- Run | Jun Mat Mat Min Exi Min Mat Gar Mat Gar Fac Gar Fac Low Low Zio Matter Collected 2943 | 200 40 181 45 . 35 41 404 607 277 35 10 293 689 42 44 Remotely . | . . . . . . . . . . . . . . . . Salvage Created 6781 | . 137 538 30 . 123 41 1268 1381 1082 152 . 1245 414 95 275 Parts 336 | . 7 39 2 . 3 . 56 70 66 5 . 52 20 5 11 Haulers Intercepted . | . . . . . . . . . . . . . . . . Recyclers Shooed 1 | . . . . . 1 . . . . . . . . . . Parts Field Recycled . | . . . . . . . . . . . . . . . . Retrieved Matter . | . . . . . . . . . . . . . . . . Parts Self-Destructed 31 | . . . . . . . . . . . . . 24 3 4 Prevented . | . . . . . . . . . . . . . . . . Kills | -11 -10 -9 -9 -9 -8 -8 -8 -8 -8 -7 -7 -7 -7 -7 -7 ------- Run | Jun Mat Mat Min Exi Min Mat Gar Mat Gar Fac Gar Fac Low Low Zio Combat Hostiles Destroyed 150 | . 3 16 2 . 3 1 30 28 22 3 . 24 12 3 3 Melee 1 | . . . . . . . . . . . . . . . 1 Guns 53 | . 3 11 2 . 3 1 11 11 . . . 10 1 . . Cannons 66 | . . 5 . . . . 13 11 22 3 . 6 5 . 1 AOE 26 | . . . . . . . 4 6 . . . 8 5 3 . Classes Destroyed 18 | . 1 3 2 . . . 3 2 . 1 . 3 1 . 2 Worker 3 | . . . 1 . . . . 2 . . . . . . . Builder 2 | . . . . . . . . . . . . 2 . . . Tunneler 1 | . . . . . . . . 1 . . . . . . . Mechanic 3 | . . . . . . . . . . . . 3 . . . Watcher 2 | . . . . . . . . 1 . . . 1 . . . Swarmer 30 | . . 7 . . . . 4 4 4 . . . 8 3 . Grunt 64 | . 3 4 . . 3 . 14 14 5 2 . 17 2 . . Brawler 4 | . . . . . . . 1 2 . . . 1 . . . Duelist 5 | . . 1 . . . . . 1 2 . . . 1 . . Protector 1 | . . . . . . . . . . . . 1 . . . Sentry 29 | . . 4 . . . 1 6 6 10 . . 1 1 . . Demolisher 1 | . . . . . . . . . . 1 . . . . . Hunter 4 | . . . . . . . 1 1 1 . . 1 . . . Programmer 7 | . . . . . . . 4 . . . . 3 . . . Zionite 7 | . . . . . . . . . . . . . . . 7 Decomposer 4 | . . . . . . . . . . . . . 1 3 . Samaritan 1 | . . . . . . . . . . . . . 1 . . Assembled 2 | . . . 2 . . . . . . . . . . . . Savage 2 | . . . . . . . . . . . . 1 . . 1 Butcher 1 | . . . . . . . . . . . . 1 . . . Guerrilla 1 | . . . . . . . 1 . . . . . . . . Marauder 2 | . . . . . . . . . . . . . . . 2 Best Kill Streak 6 | . 2 6 2 . 2 1 6 5 6 3 . 6 6 3 5 Combat Bots Only 6 | . 2 6 2 . 2 1 6 5 6 3 . 5 6 3 2 Max Kills in Single Turn 6 | . 1 2 1 . 1 1 3 2 1 1 . 6 4 3 1 Gunslinging 1 | . . 1 . . . . . . . . . . . . . Exploded 4 | . . . . . . . 3 2 . . . 4 4 3 . Melee 1 | . . . . . . . . . . . . . . . 1 Uniques/NPCs Destroyed . | . . . . . . . . . . . . . . . . Combat | -11 -10 -9 -9 -9 -8 -8 -8 -8 -8 -7 -7 -7 -7 -7 -7 -------- Run | Jun Mat Mat Min Exi Min Mat Gar Mat Gar Fac Gar Fac Low Low Zio Damage Taken 7348 | . 51 692 51 . 110 100 1175 651 528 160 . 1394 805 35 1596 Core 1123 | . 29 71 14 . 25 12 138 76 47 8 . 132 129 9 433 Absorbed by Shields 581 | . . . . . . . 127 173 145 . . 136 . . . Regen/Repaired (Parts) 27 | . . . . . . . . 27 . . . . . . . Core Remaining (%) 77 | 100 88 . . . 72 . . . 50 . . . . . . Volleys Fired 447 | . 6 34 5 . 9 4 102 68 74 6 2 64 47 6 20 Largest 3 | . 2 2 2 . 2 3 3 3 3 2 1 3 2 1 2 Hottest 278 | . 105 130 126 . 126 189 218 203 268 170 85 278 118 80 119 Shots Fired 727 | . 12 67 10 . 18 12 197 111 84 12 2 113 53 6 30 Gun 337 | . 12 55 10 . 18 12 96 46 . . . 68 6 . 14 Cannon 330 | . . 11 . . . . 96 44 84 12 2 41 25 5 10 Launcher 24 | . . 1 . . . . 5 4 . . . 4 3 1 6 Special 36 | . . . . . . . . 17 . . . . 19 . . Kinetic 65 | . . . . . . . . 29 . . . 16 6 . 14 Thermal 521 | . 6 48 10 . 18 12 188 45 47 12 2 93 25 5 10 Explosive 24 | . . 1 . . . . 5 4 . . . 4 3 1 6 Electromagnetic 81 | . 6 18 . . . . 4 16 37 . . . . . . Robot Hit Streak 60 | . 11 37 15 . 24 6 60 27 41 22 . 22 17 9 11 Robot Miss Streak 3 | . . 2 1 . . 2 1 2 2 1 . 2 3 1 2 Penetration Max 1 | . . . . . . . . 1 . . . 1 . . . Secondary Targets 3 | . . 2 1 . . . . . . . . . . . . Max Gunslinging Chain 1 | . . 1 1 . . . . . . . . . . . . Shots Hit Robots 530 | . 11 56 8 . 17 9 127 89 45 9 . 77 41 5 36 Core Hits 241 | . 6 24 5 . 7 3 45 44 26 4 . 42 16 6 13 Critical Kills 2 | . . . . . . . 1 . . . . . . . 1 Critical Parts Destroyed 2 | . . . . . . . . . . . . . . . 2 Critical Strikes 11 | . . 1 . . 1 . 5 . . . . 1 . . 3 Burn 7 | . . 1 . . 1 . 4 . . . . 1 . . . Meltdown 1 | . . . . . . . 1 . . . . . . . . Smash 3 | . . . . . . . . . . . . . . . 3 Melee Attacks 16 | . . . . . . . . . . . . . 1 . 15 Impact 16 | . . . . . . . . . . . . . 1 . 15 Slashing . | . . . . . . . . . . . . . . . . Piercing . | . . . . . . . . . . . . . . . . Sneak Attacks . | . . . . . . . . . . . . . . . . Combat Hostiles . | . . . . . . . . . . . . . . . . Follow-up Attacks . | . . . . . . . . . . . . . . . . Damage Inflicted 15636 | . 145 870 138 . 285 152 3119 2354 1430 284 . 4159 896 319 1485 Guns 5460 | . 145 692 138 . 285 152 1337 867 . . . 1511 72 . 261 Cannons 6267 | . . 174 . . . . 1539 1166 1430 284 . 843 500 99 232 Explosions 3305 | . . . . . . . 243 321 . . . 1805 324 220 392 Melee 600 | . . . . . . . . . . . . . . . 600 Ramming 4 | . . 4 . . . . . . . . . . . . . Kinetic 1174 | . . . . . . . . 601 . . . 240 72 . 261 Thermal 10333 | . 66 671 138 . 285 152 2859 1052 674 284 . 3321 500 99 232 Explosive 1999 | . . . . . . . 243 222 . . . 598 324 220 392 Electromagnetic 1526 | . 79 195 . . . . 17 479 756 . . . . . . Impact 600 | . . . . . . . . . . . . . . . 600 Slashing . | . . . . . . . . . . . . . . . . Piercing . | . . . . . . . . . . . . . . . . Highest Corruption 10 | . . . . . . . 2 2 5 . . 3 3 3 10 Average Corruption 2 | . . . . . . . 1 2 3 . . 1 3 3 6 Corruption Purged . | . . . . . . . . . . . . . . . . Corruption Blocked . | . . . . . . . . . . . . . . . . Effects 138 | . . . . . . . . 47 29 . . 19 28 11 4 Message Errors 24 | . . . . . . . . 10 2 . . 4 6 2 . Matter Fused 40 | . . . . . . . . 11 10 . . 5 8 3 3 Heat Flow Errors 23 | . . . . . . . . 8 4 . . 4 6 1 . Energy Discharges 16 | . . . . . . . . 4 7 . . 2 1 2 . Parts Rejected 2 | . . . . . . . . 1 . . . . 1 . . Parts Fused 4 | . . . . . . . . . . . . . 3 1 . Data Loss (minor) 13 | . . . . . . . . 5 3 . . 2 2 . 1 Data Loss (major) 7 | . . . . . . . . 3 1 . . 1 1 1 . Misfires 4 | . . . . . . . . 4 . . . . . . . Alerts 4 | . . . . . . . . 1 2 . . . . 1 . Weapon Failures 1 | . . . . . . . . . . . . 1 . . . Overload Shots . | . . . . . . . . . . . . . . . . Overflow Damage 466 | . . . . . . . 12 40 17 . . 171 40 6 180 Projectiles 115 | . . . . . . . 12 40 17 . . . 40 6 . Explosions 171 | . . . . . . . . . . . . 171 . . . Melee 180 | . . . . . . . . . . . . . . . 180 Knockbacks 3 | . . . . . . . . . . . . . . . 3 Impact 3 | . . . . . . . . . . . . . . . 3 Kinetic . | . . . . . . . . . . . . . . . . Secondary . | . . . . . . . . . . . . . . . . Self-Inflicted Damage 56 | . . . . . . . 16 20 . . . 20 . . . Shots 3 | . . . . . . . 1 1 . . . 1 . . . Rammed . | . . . . . . . . . . . . . . . . Targets Rammed 2 | . . 2 . . . . . . . . . . . . . Kicked 2 | . . 2 . . . . . . . . . . . . . Crushed . | . . . . . . . . . . . . . . . . Highest Temperature 600 | . 135 435 . . 22 21 118 212 386 260 48 600 385 229 . Average Temperature 117 | . 56 130 . . 13 12 35 52 75 126 30 203 121 61 . Received Heat Transfer 2545 | . 57 201 . . 99 81 495 342 227 18 . 674 315 . 36 Effects 41 | . . 3 . . . . . . . . . 34 4 . . Shutdowns 10 | . . . . . . . . . . . . 9 1 . . Energy Bleed 5 | . . . . . . . . . . . . 2 3 . . Interference 6 | . . 2 . . . . . . . . . 4 . . . Matter Decay 4 | . . . . . . . . . . . . 4 . . . Short Circuit 2 | . . 1 . . . . . . . . . 1 . . . Damage (minor) 2 | . . . . . . . . . . . . 2 . . . Damage (major) 12 | . . . . . . . . . . . . 12 . . . Siege Activations . | . . . . . . . . . . . . . . . . Robots Corrupted . | . . . . . . . . . . . . . . . . Combat Hostiles . | . . . . . . . . . . . . . . . . Parts Fried 9 | . . 1 . . . . . 1 5 . . . . . 2 Impact Corruptions 8 | . . . . . . . . . . . . . . . 8 Robots Melted 4 | . . . . . . . 2 . . . . . 1 . 1 Combat Hostiles 4 | . . . . . . . 2 . . . . . 1 . 1 Parts Melted 31 | . 2 3 . . 3 . 10 . 2 1 . 5 5 . . Heat Transferred 15437 | . 185 1628 296 . 703 333 4780 1580 848 333 . 3229 822 200 500 Parts Sabotaged . | . . . . . . . . . . . . . . . . Parts Stolen . | . . . . . . . . . . . . . . . . Parts Stripped . | . . . . . . . . . . . . . . . . Power Chain Reactions 1 | . . . . . . . . 1 . . . . . . . Missiles Intercepted . | . . . . . . . . . . . . . . . . Alert | -11 -10 -9 -9 -9 -8 -8 -8 -8 -8 -7 -7 -7 -7 -7 -7 ------- Run | Jun Mat Mat Min Exi Min Mat Gar Mat Gar Fac Gar Fac Low Low Zio Peak Influence 2171 | . 94 358 40 . 85 52 2171 929 1177 691 1782 927 . . . Initial 911 | . . 33 35 . . . 8 911 301 534 426 810 . . . Average 698 | . 59 195 40 . 66 23 894 723 769 576 1003 708 . . . Maximum Alert Level 5 | . . 1 . . . . 5 3 4 2 5 3 . . . Low Security (%) 15 | 100 100 39 100 . 100 100 7 . . . . . . . . Level 1 6 | . . 60 . . . . 9 . 11 . . . . . . Level 2 30 | . . . . . . . 34 39 31 100 27 44 . . . Level 3 33 | . . . . . . . 17 60 44 . 32 55 . . . Level 4 9 | . . . . . . . 14 . 12 . 32 . . . . Level 5 4 | . . . . . . . 16 . . . 6 . . . . High Security . | . . . . . . . . . . . . . . . . Max Security . | . . . . . . . . . . . . . . . . Squads Dispatched 17 | . 1 . . . . . . 6 . 3 . 7 . . . Investigation 4 | . 1 . . . . . . 3 . . . . . . . Extermination 2 | . . . . . . . . . . . . 2 . . . Reinforcement 5 | . . . . . . . . 2 . 1 . 2 . . . Assault 4 | . . . . . . . . 1 . . . 3 . . . Garrison 2 | . . . . . . . . . . 2 . . . . . Intercept . | . . . . . . . . . . . . . . . . Searches Triggered . | . . . . . . . . . . . . . . . . Construction Impeded 1 | . . . . . . . . . . . . 1 . . . Haulers Reinforced . | . . . . . . . . . . . . . . . . Active Scanning Responses . | . . . . . . . . . . . . . . . . Cargo Convoy Interrupts . | . . . . . . . . . . . . . . . . Stealth | -11 -10 -9 -9 -9 -8 -8 -8 -8 -8 -7 -7 -7 -7 -7 -7 --------- Run | Jun Mat Mat Min Exi Min Mat Gar Mat Gar Fac Gar Fac Low Low Zio Distress Signals 8 | . . 2 . . . 1 . 5 . . . . . . . Communications Jammed . | . . . . . . . . . . . . . . . . Distress Signals . | . . . . . . . . . . . . . . . . Times Spotted 230 | . 3 22 4 . 4 5 31 52 22 7 . 30 27 3 20 Peak Tracking Total 11 | . 2 7 5 . 3 2 4 7 4 3 . 5 11 3 10 Tactical Retreats 4 | . . 1 . . 1 . . . 1 . . . . . 1 Traps | -11 -10 -9 -9 -9 -8 -8 -8 -8 -8 -7 -7 -7 -7 -7 -7 ------- Run | Jun Mat Mat Min Exi Min Mat Gar Mat Gar Fac Gar Fac Low Low Zio Traps Triggered 11 | . 1 . . . . . 5 . 3 . 1 1 . . . Indirectly . | . . . . . . . . . . . . . . . . Trap Hack Attempts . | . . . . . . . . . . . . . . . . Triggered . | . . . . . . . . . . . . . . . . Disarmed . | . . . . . . . . . . . . . . . . Reprogrammed . | . . . . . . . . . . . . . . . . Reused . | . . . . . . . . . . . . . . . . Traps Extracted . | . . . . . . . . . . . . . . . . Installed . | . . . . . . . . . . . . . . . . Triggered 2 | . . . . . . . . . . . . . . 2 . Machines | -11 -10 -9 -9 -9 -8 -8 -8 -8 -8 -7 -7 -7 -7 -7 -7 ---------- Run | Jun Mat Mat Min Exi Min Mat Gar Mat Gar Fac Gar Fac Low Low Zio Machines Disabled 36 | . . . . . . . 8 6 3 . 1 16 2 . . Max in Single Turn 10 | . . . . . . . 1 2 1 . 1 10 1 . . Garrison Access 1 | . . . . . . . . . . . . 1 . . . Garrison Relay 9 | . . . . . . . 5 . 3 . 1 . . . . Phase Generator 1 | . . . . . . . 1 . . . . . . . . Machines Repaired . | . . . . . . . . . . . . . . . . Machines Sabotaged . | . . . . . . . . . . . . . . . . Overloaded Fab Kills . | . . . . . . . . . . . . . . . . Hacking | -11 -10 -9 -9 -9 -8 -8 -8 -8 -8 -7 -7 -7 -7 -7 -7 --------- Run | Jun Mat Mat Min Exi Min Mat Gar Mat Gar Fac Gar Fac Low Low Zio Machines Accessed 39 | . 1 3 . 1 . 6 3 12 3 1 4 4 1 . . Terminals 27 | . 1 2 . . . 3 3 8 3 . 4 2 1 . . Fabricators 1 | . . . . . . . . . . . . 1 . . . Repair Stations 1 | . . . . . . . . 1 . . . . . . . Recycling Units 2 | . . . . . . 1 . . . . . 1 . . . Scanalyzers 4 | . . 1 . . . 1 . 2 . . . . . . . Garrison Access 3 | . . . . . . 1 . 1 . 1 . . . . . Total Hacks 123 | . 3 11 . 1 . 22 3 53 5 1 10 12 2 . . Successful 83 | . 1 8 . 1 . 18 3 39 2 1 3 5 2 . . Failed 40 | . 2 3 . . . 4 . 14 3 . 7 7 . . . Catastrophic 6 | . 1 . . . . . . 2 1 . 1 1 . . . Database Lockouts . | . . . . . . . . . . . . . . . . Manual 39 | . . 4 . . . 4 . 22 . . . 9 . . . Terminals 78 | . 3 6 . . . 7 3 34 5 . 10 8 2 . . Fabricators 2 | . . . . . . . . . . . . 2 . . . Repair Stations 2 | . . . . . . . . 2 . . . . . . . Recycling Units 4 | . . . . . . 2 . . . . . 2 . . . Scanalyzers 33 | . . 5 . . . 12 . 16 . . . . . . . Garrison Access 3 | . . . . . . 1 . 1 . 1 . . . . . Terminal Hacks 33 | . 1 1 . 1 . 2 3 16 2 . 3 2 2 . . Record 3 | . . . . 1 . . . . . . . . 2 . . Part Schematic 2 | . . . . . . . . 2 . . . . . . . Robot Analysis 1 | . . . . . . . . 1 . . . . . . . Prototype ID Bank 1 | . . . . . . . . 1 . . . . . . . Open Door 3 | . . . . . . . 1 . 1 . 1 . . . . Branch Access Points 3 | . 1 1 . . . . . 1 . . . . . . . Emergency Access Points 3 | . . . . . . . 1 1 1 . . . . . . Terminal Index 2 | . . . . . . . . 1 . . . 1 . . . Repair Station Index 1 | . . . . . . . . 1 . . . . . . . Recycling Unit Index 1 | . . . . . . . . 1 . . . . . . . Scanalyzer Index 1 | . . . . . . . . 1 . . . . . . . Surveillance Status 1 | . . . . . . . . 1 . . . . . . . Patrol Status 1 | . . . . . . . . 1 . . . . . . . Registered Components 3 | . . . . . . 1 . 1 . . . 1 . . . Zone Layout 4 | . . . . . . 1 . 3 . . . . . . . Garrison Registry 1 | . . . . . . . . . . . 1 . . . . Patrol Navigation 1 | . . . . . . . 1 . . . . . . . . Security Stations 1 | . . . . . . . . . . . 1 . . . . Fabricator Hacks . | . . . . . . . . . . . . . . . . Repair Station Hacks 2 | . . . . . . . . 2 . . . . . . . Scan Component 1 | . . . . . . . . 1 . . . . . . . Repair 1 | . . . . . . . . 1 . . . . . . . Recycling Unit Hacks 1 | . . . . . . 1 . . . . . . . . . Retrieve Components 1 | . . . . . . 1 . . . . . . . . . Scanalyzer 31 | . . 4 . . . 12 . 15 . . . . . . . Insert Component 15 | . . 2 . . . 6 . 7 . . . . . . . Analyze 16 | . . 2 . . . 6 . 8 . . . . . . . Garrison Access Hacks 3 | . . . . . . 1 . 1 . 1 . . . . . Unlock Access 3 | . . . . . . 1 . 1 . 1 . . . . . Unauthorized Hacks 13 | . . 3 . . . 2 . 5 . . . 3 . . . Terminals 11 | . . 3 . . . 2 . 5 . . . 1 . . . Assimilate 2 | . . 1 . . . . . 1 . . . . . . . Botnet 9 | . . 2 . . . 2 . 4 . . . 1 . . . Fabricators 2 | . . . . . . . . . . . . 2 . . . Liberate 1 | . . . . . . . . . . . . 1 . . . Fabnet 1 | . . . . . . . . . . . . 1 . . . Repair Stations . | . . . . . . . . . . . . . . . . Recycling Units . | . . . . . . . . . . . . . . . . Scanalyzers . | . . . . . . . . . . . . . . . . Garrison Access . | . . . . . . . . . . . . . . . . Data Cores Recovered . | . . . . . . . . . . . . . . . . Used . | . . . . . . . . . . . . . . . . Hacking Detections 29 | . 1 3 . . . 4 1 11 1 . 3 4 1 . . Full Trace Events 6 | . . . . . . . . 4 1 . 1 . . . . Feedback Events . | . . . . . . . . . . . . . . . . Feedback Blocked . | . . . . . . . . . . . . . . . . Robot Schematics Acquired . | . . . . . . . . . . . . . . . . Robots Built . | . . . . . . . . . . . . . . . . Authchips . | . . . . . . . . . . . . . . . . Time . | . . . . . . . . . . . . . . . . Total Robot Build Rating . | . . . . . . . . . . . . . . . . Part Schematics Acquired 16 | . . 2 . . . 6 . 8 . . . . . . . Parts Built . | . . . . . . . . . . . . . . . . Authchips . | . . . . . . . . . . . . . . . . Time . | . . . . . . . . . . . . . . . . Total Part Build Rating . | . . . . . . . . . . . . . . . . Parts Repaired 1 | . . . . . . . . 1 . . . . . . . Time 44 | . . . . . . . . 44 . . . . . . . Parts Recycled . | . . . . . . . . . . . . . . . . Recycled Matter . | . . . . . . . . . . . . . . . . Retrieved Matter . | . . . . . . . . . . . . . . . . Retrieved Components 1 | . . . . . . 1 . . . . . . . . . Parts Scanalyzed 15 | . . 2 . . . 6 . 7 . . . . . . . Part Schematics Acquired 14 | . . 2 . . . 6 . 6 . . . . . . . Parts Damaged 3 | . . . . . . 2 . 1 . . . . . . . Bothacking | -11 -10 -9 -9 -9 -8 -8 -8 -8 -8 -7 -7 -7 -7 -7 -7 ------------ Run | Jun Mat Mat Min Exi Min Mat Gar Mat Gar Fac Gar Fac Low Low Zio Used RIF Installer 4 | . . . . . . . 1 . 2 . 1 . . . . Watcher Feeds 1 | . . . . . . . . . 1 . . . . . . Patrol Navigation 1 | . . . . . . . . . 1 . . . . . . Autooverride 1 | . . . . . . . . . . . 1 . . . . Robots Hacked 23 | . . . . . . . . 9 . . . . 13 1 . Non-combat 5 | . . . . . . . . 5 . . . . . . . Combat 18 | . . . . . . . . 4 . . . . 13 1 . Autooverrided 4 | . . . . . . . . . . . . . 3 1 . Robot Hacks Applied 22 | . . . . . . . . 9 . . . . 13 . . parse_system 1 | . . . . . . . . . . . . . 1 . . drop_inventory 1 | . . . . . . . . 1 . . . . . . . map_route 2 | . . . . . . . . 2 . . . . . . . spike_heat 2 | . . . . . . . . . . . . . 2 . . amplify_resonance 1 | . . . . . . . . . . . . . 1 . . reboot_system 1 | . . . . . . . . . . . . . 1 . . streamctrl_high 1 | . . . . . . . . 1 . . . . . . . formatsys_low 2 | . . . . . . . . 2 . . . . . . . formatsys_high 11 | . . . . . . . . 3 . . . . 8 . . Relay Couplers Released 37 | . . . . . . . 22 . 10 . 3 2 . . . Machine Destruction 34 | . . . . . . . 19 . 10 . 3 2 . . . Programmers 3 | . . . . . . . 3 . . . . . . . . Attached 7 | . . . . . . . . 2 . . . 1 4 . . Fabnet Peak Effective % . | . . . . . . . . . . . . . . . . Robots Rewired 8 | . . . . . . . 2 . 3 . 3 . . . . Allies Hacked . | . . . . . . . . . . . . . . . . Hacks Repelled . | . . . . . . . . . . . . . . . . Allies | -11 -10 -9 -9 -9 -8 -8 -8 -8 -8 -7 -7 -7 -7 -7 -7 -------- Run | Jun Mat Mat Min Exi Min Mat Gar Mat Gar Fac Gar Fac Low Low Zio Total Allies 32 | . . 1 2 . . . 2 6 4 . 5 . 11 1 . Largest Group 6 | . . 1 2 2 . . 2 5 4 4 6 6 4 1 1 Highest-Rated Group 123 | . . 10 43 43 . . 70 81 94 94 123 123 97 16 16 Highest-Rated Ally 49 | . . 10 31 31 . . 39 29 31 31 32 32 49 16 16 Total Orders 3 | . . . . . . . . . . . . 1 . 2 . STAY 1 | . . . . . . . . . . . . . . 1 . ROAM 1 | . . . . . . . . . . . . 1 . . . FOLLOW 1 | . . . . . . . . . . . . . . 1 . Ally Attacks 212 | . . . . . . . 27 40 . 61 1 31 41 1 10 Total Damage 3009 | . . . . . . . 406 469 . 757 108 531 623 18 97 Kills 24 | . . . . . . . 4 5 . 4 1 3 6 1 . Allies Corrupted . | . . . . . . . . . . . . . . . . Allies Melted . | . . . . . . . . . . . . . . . . Intel | -11 -10 -9 -9 -9 -8 -8 -8 -8 -8 -7 -7 -7 -7 -7 -7 ------- Run | Jun Mat Mat Min Exi Min Mat Gar Mat Gar Fac Gar Fac Low Low Zio Robot Analysis Total 1 | . . . . . . . . 1 . . . . . . . Derelict Logs Recovered 1 | . . . . . . . . . . . . . 1 . . Drone Launches . | . . . . . . . . . . . . . . . . Drone Recoveries . | . . . . . . . . . . . . . . . . Exploration | -11 -10 -9 -9 -9 -8 -8 -8 -8 -8 -7 -7 -7 -7 -7 -7 ------------- Run | Jun Mat Mat Min Exi Min Mat Gar Mat Gar Fac Gar Fac Low Low Zio Turns Passed 18542 | 1 285 807 396 440 410 616 3271 3077 1718 291 2284 1982 1701 715 548 Spaces Moved 6779 | 1 148 330 179 202 141 175 948 826 555 101 768 525 1058 506 316 Core . | . . . . . . . . . . . . . . . . Treads . | . . . . . . . . . . . . . . . . Legs 6779 | 1 148 330 179 202 141 175 948 826 555 101 768 525 1058 506 316 Wheels . | . . . . . . . . . . . . . . . . Hover . | . . . . . . . . . . . . . . . . Flight . | . . . . . . . . . . . . . . . . Fastest Speed 120 | 120 120 190 190 190 260 330 260 260 260 260 260 190 120 135 120 Average Speed 234 | 120 153 190 190 218 260 330 303 272 260 260 291 303 147 135 133 Slowest Speed 345 | 120 190 190 190 260 260 330 330 345 260 260 330 330 260 135 135 Overloaded Moves . | . . . . . . . . . . . . . . . . Propulsion Burnouts . | . . . . . . . . . . . . . . . . Robots Hopped . | . . . . . . . . . . . . . . . . Cave-ins Triggered . | . . . . . . . . . . . . . . . . Exploration Rate (%) 47 | 2 20 33 43 58 37 20 98 72 69 4 89 14 92 77 24 Regions Visited 15 Branch Regions 6 Pre-discovered Areas 1 | . . . . 1 . . . . . . . . . . . Known Exits Taken 7 | . . 1 . . . 1 . 1 . 1 . 1 1 1 . Unknown Exits Taken 5 | 1 1 . 1 1 1 . . . . . . . . . . Scrap Searched 10 | . . . . . 1 . . . . . . . 5 3 1 Spaces Dug 10 | . . . . . . . . 10 . . . . . . . Terrain Destroyed 405 | . . 10 . . . . 77 80 . 3 . 124 44 17 50 Melee . | . . . . . . . . . . . . . . . . Projectile 36 | . . . . . . . . 8 . 3 . 17 4 . 4 AOE 369 | . . 10 . . . . 77 72 . . . 107 40 17 46 Terrain Rammed . | . . . . . . . . . . . . . . . . Walls Destroyed . | . . . . . . . . . . . . . . . . Machines Disabled . | . . . . . . . . . . . . . . . . Actions | -11 -10 -9 -9 -9 -8 -8 -8 -8 -8 -7 -7 -7 -7 -7 -7 --------- Run | Jun Mat Mat Min Exi Min Mat Gar Mat Gar Fac Gar Fac Low Low Zio Total 8824 | 2 197 447 225 203 167 204 1201 1571 784 120 819 805 1162 532 385 Wait 1096 | . 21 12 42 . 17 11 47 601 94 9 5 186 13 21 17 Move 6767 | . 147 329 178 201 140 175 947 826 554 101 767 524 1057 505 316 Hop . | . . . . . . . . . . . . . . . . Pick Up 112 | . 12 21 . . . 6 24 14 14 1 4 8 4 . 4 Fast Attach 44 | . 3 6 . . . 2 3 3 4 2 3 6 8 . 4 Attach 52 | . . 6 . . . 2 2 9 3 1 . 9 13 . 7 Detach 9 | . . 1 . . . . 1 3 . . . 1 3 . . Swap 73 | . 1 12 . 1 1 1 15 25 2 . 6 3 6 . . Drop 132 | 2 7 24 . 1 . 3 31 22 15 . 11 4 10 . 2 Fire 447 | . 6 34 5 . 9 4 102 68 74 6 2 64 47 6 20 Melee 16 | . . . . . . . . . . . . . 1 . 15 Ram . | . . . . . . . . . . . . . . . . Kick 2 | . . 2 . . . . . . . . . . . . . Crush . | . . . . . . . . . . . . . . . . Escape Stasis 20 | . . . . . . . 20 . . . . . . . . Rewire 54 | . . . . . . . 9 . 24 . 21 . . . . Trap . | . . . . . . . . . . . . . . . . Miscellaneous . | . . . . . . . . . . . . . . . . Route ------- -11/Junkyard -10/Materials (discovered 2 exits: *Mat / Min) -9/Materials -9/Mines -9/Exiles -8/Mines -8/Materials (discovered 2 exits: *Fac / Gar) -8/Garrison (discovered 3 exits: *Mat x3) -8/Materials (discovered 3 exits: *Fac x2 / Gar) -8/Garrison (discovered 2 exits: *Fac x2) -7/Factory -7/Garrison (discovered 3 exits: *Fac x3) -7/Factory -7/Lower Caves -7/Lower Caves -7/Zion (discovered 1 exit: [*Pro]) History --------- Turn | Location | Event 2 | -11/Junkyard | Discovered new exit (range 0) 2 | -11/Junkyard | Entered Materials 35 | -10/Materials | Identified exit to Mines 137 | -10/Materials | Discovered new exit (range 9) 287 | -10/Materials | Entered another Materials area 287 | -9/Materials | Evolved 2 slots: Utility x2 309 | -9/Materials | Build established: Mutant 827 | -9/Materials | Discovered new exit (range 15) 893 | -9/Materials | Identified exit to Mines 1094 | -9/Materials | Entered Mines 1167 | -9/Mines | Assembled infested the area 1223 | -9/Mines | Met 8R-AWN 1317 | -9/Mines | Received a Rocket Launcher from a helpful Derelict 1380 | -9/Mines | Build established: Scavenger-Mutant 1455 | -9/Mines | Discovered new exit (range 5) 1490 | -9/Mines | Entered Exiles 1490 | -9/Exiles | Accompanied by 2 allies 1520 | -9/Exiles | Led the pair of lost Derelicts to a safe place 1534 | -9/Exiles | Welcomed by 8R-AWN 1570 | -9/Exiles | Met EX-HEX 1644 | -9/Exiles | Met EX-DEC 1654 | -9/Exiles | Learned location of Zion (-7) 1896 | -9/Exiles | Discovered new exit (range 14) 1930 | -9/Exiles | Entered Mines 2330 | -8/Mines | Discovered new exit (range 4) 2340 | -8/Mines | Entered Materials 2340 | -8/Materials | Evolved 2 slots: Utility x1, Weapon x1 2647 | -8/Materials | Build established: Scavenger-Tank 2867 | -8/Materials | Discovered new exit (range 3) 2956 | -8/Materials | Identified exit to Garrison 2956 | -8/Materials | Entered Garrison 3148 | -8/Garrison | Triggered checkpoint 3172 | -8/Garrison | Triggered checkpoint 3198 | -8/Garrison | Build established: Gunner 3198 | -8/Garrison | Triggered checkpoint 3218 | -8/Garrison | Triggered checkpoint 3366 | -8/Garrison | Discovered new exit (range 8) 3466 | -8/Garrison | Triggered checkpoint 3527 | -8/Garrison | Build established: Tank 3528 | -8/Garrison | Garrison Relay disabled 3675 | -8/Garrison | Garrison Relay disabled 3820 | -8/Garrison | Installed Relay Interface Framework 4518 | -8/Garrison | Discovered new exit (range 12) 4616 | -8/Garrison | Build established: Bothacker-Tank 4632 | -8/Garrison | Triggered checkpoint 4645 | -8/Garrison | Garrison Relay disabled 5029 | -8/Garrison | Triggered checkpoint 5444 | -8/Garrison | Garrison Relay disabled 5624 | -8/Garrison | Build established: Bothacker-Mutant 5800 | -8/Garrison | Phase Generator disabled 5801 | -8/Garrison | Garrison Relay disabled 5838 | -8/Garrison | Triggered checkpoint 5884 | -8/Garrison | Discovered new exit (range 11) 6227 | -8/Garrison | Entered Materials 7220 | -8/Materials | Build established: Bothacker-Tank 7755 | -8/Materials | Build established: Bothacker-Mutant 7827 | -8/Materials | First assault squad dispatched 8411 | -8/Materials | Discovered new exit (range 9) 8802 | -8/Materials | Discovered new exit (range 9) 8982 | -8/Materials | Repaired Imp. Shield Generator 9304 | -8/Materials | Identified exit to Garrison 9304 | -8/Materials | Entered Garrison 9352 | -8/Garrison | Build established: Mutant 9356 | -8/Garrison | Expanded RIF knowledge: Patrol Navigation 9444 | -8/Garrison | Triggered checkpoint 9502 | -8/Garrison | Garrison Relay disabled 9718 | -8/Garrison | Triggered checkpoint 9802 | -8/Garrison | Build established: Bothacker-Mutant 10004 | -8/Garrison | Discovered new exit (range 11) 10058 | -8/Garrison | Expanded RIF knowledge: Watcher Feeds 10170 | -8/Garrison | Triggered checkpoint 10268 | -8/Garrison | Garrison Relay disabled 10436 | -8/Garrison | Triggered checkpoint 10593 | -8/Garrison | Garrison Relay disabled 10654 | -8/Garrison | Triggered checkpoint 10659 | -8/Garrison | Discovered new exit (range 10) 10959 | -8/Garrison | Rescued a captive Derelict 11022 | -8/Garrison | Entered Factory 11022 | -7/Factory | Accompanied by 4 allies 11022 | -7/Factory | Evolved 2 slots: Power x1, Utility x1 11138 | -7/Factory | Build established: Bothacker-Tank 11168 | -7/Factory | Garrison activated, responded to threat 11308 | -7/Factory | Identified exit to Garrison 11313 | -7/Factory | Entered Garrison 11313 | -7/Garrison | Discovered recently destroyed garrison 11313 | -7/Garrison | Accompanied by 1 ally 11451 | -7/Garrison | Discovered new exit (range 65) 11451 | -7/Garrison | Discovered new exit (range 42) 11451 | -7/Garrison | Discovered new exit (range 70) 11538 | -7/Garrison | Build established: Bothacker-Mutant 11767 | -7/Garrison | Learned Factory security intel 12008 | -7/Garrison | Garrison Relay disabled 12358 | -7/Garrison | Expanded RIF knowledge: Autooverride 13098 | -7/Garrison | Rescued a captive Derelict 13098 | -7/Garrison | Rescued a captive Derelict 13597 | -7/Garrison | Entered Factory 13597 | -7/Factory | Accompanied by 6 allies 13997 | -7/Factory | First assault squad dispatched 15025 | -7/Factory | Lost 7 parts (6u1w) 15511 | -7/Factory | Discovered new exit (range 12) 15574 | -7/Factory | Identified exit to Lower Caves 15579 | -7/Factory | Entered Lower Caves 15703 | -7/Lower Caves | Attracted the attention of an 0b10 base 15783 | -7/Lower Caves | Lost 4 parts (2p1n1w) 15894 | -7/Lower Caves | Learned Research terminal intel 15894 | -7/Lower Caves | Learned Extension emergency access door positions 16416 | -7/Lower Caves | Learned Factory trap positions 16675 | -7/Lower Caves | Discovered new exit (range 9) 16693 | -7/Lower Caves | Identified exit to Lower Caves 17280 | -7/Lower Caves | Entered another Lower Caves area 17280 | -7/Lower Caves | Accompanied by 1 ally 17977 | -7/Lower Caves | Discovered new exit (range 12) 17989 | -7/Lower Caves | Identified exit to Zion 17995 | -7/Lower Caves | Entered Zion 17995 | -7/Zion | Accompanied by 1 ally 18063 | -7/Zion | System corruption cleaned by Quarantine Array 18264 | -7/Zion | Discovered new exit (range 14) 18357 | -7/Zion | RIF detected upon attempting to enter Zion 18357 | -7/Zion | Attacked by Zionites 18357 | -7/Zion | Spotted 39-6MB(B) 18357 | -7/Zion | Spotted AQ-QQ4(B) 18372 | -7/Zion | Destroyed 39-6MB(B) 18389 | -7/Zion | Destroyed AQ-QQ4(B) 18415 | -7/Zion | Lost 4 parts (2p2w) 18439 | -7/Zion | Core integrity fell below 50% 18488 | -7/Zion | System corruption reached 10% 18524 | -7/Zion | Core integrity fell below 20% 18543 | -7/Zion | Destroyed by AJ-T8F(z) with Makeshift Spear Last Messages --------------- 18531_ Acquired Imp. Deuterium Engine. 18532_ Imp. Carbon-fiber Leg severed. 18534_ Acquired Great Maul. 18535_ AJ-T8F(z) suffers critical hit (Smash). 18535_ Destroyed Mak. Hammer. 18535_ AJ-T8F(z) system corrupted by crushing effect. 18535_ AJ-T8F(z) knocked back. 18537_ AK-FXR(z) pulls a Mak. Shrapnel Gun out of the Twisted Machinery. 18537_ AK-FXR(z) overheating. 18538_ 1V-JXH(z) suffers critical hit (Smash). 18538_ Destroyed Mak. Hacking Suite. 18538_ 1V-JXH(z) system corrupted by crushing effect. 18538_ AJ-T8F(z) pulls a Mak. Spear out of the Twisted Machinery. 18538_ AK-FXR(z) overheating. 18541_ Destroyed Mak. Sword. 18541_ 1V-JXH(z) system corrupted by crushing effect. 18541_ Imp. Deuterium Engine destroyed. 18542_ 1V-JXH(z) system terminally corrupted. 18542_ Mak. Leg fried. 18542_ Transmission Jammer fried. Map ----- +----------------------------------------------------+ | ?????????????????????????????????????????????????? | | ?????????????????????????????????????????????????? | | ?????????????????????????????????????????????????? | | ?????????????????????????????????????????????????? | | ?????????????????????????????????????????????????? | | ?????????????????????????????????????????????????? | | ?????????????????????????????????????????????????? | | ?????????????????????????????????????????????????? | | ?????????????????????????????????????????????????? | | ?????????????????????????????????????????????????? | | ??????????????????????? ??????????????????????? | | ??????????????????????? ??????????????????????? | | ??????????????????????? ??????????????????????? | | ?????????????????????? ??????????????????????? | | ????????????????????? ??????????????????????? | | ????????????????????? "" ??????????????????????? | | ????????????????????? " ??????????????????????? | | ????????????????????? z ??????????????????????? | | ?????????????? ?????? "?????????????????????? | | ???????????? " ""##?" ????????????????? | | ???????????? "#"" """?#""????????????????? | | ??????????? """" z"##"#"??""????????????? | | ??????????? """" zz"""""##"""" ????????? | | ??????????$ #"""""""" """"????? | | ?????????? """" "" """"#????? | | ?????????? @z """ """"""""##???? | | ??????????????""" %%lz "" """""" ""#???? | | ??????????????""""""""""" / #" " """" "##??? | | ????????????????""""""""#""z "" #"" """#??? | | ???????????????????###"### """ """#??? | | ?????????????????????##??#" " " ""###?? | | ????????????????????????##" % ""#?? | | ????????????????????????#"" % = "" ## "##?? | | ????????????????????????#"" = # # "#### | | ????????????????????????##" % """ """ # | | ????????????????????????#"" """ """ | | ????????????????????????##" """ # | | ?????????????????????????#" # /# | | ????????????????????????#"" ## % | | ????????????????????????#"" """ | | ????????????????????????"#" """""" ## | | ?????????????????????????#" ""#"""" """ # | | ?????????????????????????"" """#""" | | ?????????????????????????"" """?#"" | | ??????????????????????????" "???##""""""" " | | ??????????????????????????" #????#####"#"""# | | ?????????????????????????? "????????######### | | ??????????????????????????? "????????????????# | | ??????????????????????????? ????????????????### | | ??????????????????????????? ???????????????????? | +----------------------------------------------------+ Best States ------------- Heat Dissipation 74 Energy Generation 39 Energy Capacity 565 Matter Stores 300 Matter Capacity 300 Sight Range 16 Robot Scan Range 18 Terrain Scan Density 10 Additional Mass Support 6 Armor Coverage 150 Resistance: KI 20 Resistance: TH 20 Resistance: EX 20 Resistance: EM 20 Resistance: I 20 Resistance: S 20 Resistance: P 20 Weapon Cycling 20 Evasion (%) 55 Targeting Accuracy 8 Particle Charging 30 Offensive Hacking 20 Relay Coupler Types 3 Relay Coupler Value 85 Item Schematics ----------------- Hrd. Light Armor Plating | -9/Materials | Scanalyzed Particle Gun | -9/Materials | Scanalyzed Imp. Targeting Computer | -8/Materials | Scanalyzed Imp. Signal Interpreter | -8/Materials | Scanalyzed Cld. Ion Engine | -8/Materials | Scanalyzed Hardlight Generator | -8/Materials | Scanalyzed Rocket Launcher | -8/Materials | Scanalyzed Aluminum Leg | -8/Materials | Scanalyzed Adv. Shield Generator | -8/Materials | Scanalyzed KE Penetrator | -8/Materials | Scanalyzed Hvy. Phase Cannon | -8/Materials | Scanalyzed Hacking Suite | -8/Materials | Scanalyzed Variable Charge Gun | -8/Materials | Scanalyzed Imp. Grenade Launcher | -8/Materials | Scanalyzed Imp. Light Armor Plating | -8/Materials | Hacked VSS Leg | -8/Materials | Hacked Robot Schematics ------------------ None Fabricated ------------ Nothing Alien Tech Used ----------------- None Achievements -------------- None Challenges ------------ None Game ------ Seed HoverUtilityShearcannon Manual? 0 Play Time 02:00:31 Cumulative 162.1 hours Start 2023.05.21 @ 05:40:27 End 2023.05.21 @ 12:28:48 Sessions 3 Manual Loads 0 Difficulty Adventurer Special Mode None Game No. 129 Rogue 63 Adventurer 40 Explorer 26 Win Type - Total 1 Types 1/0/0/0/0/0/0/0/0 Lore% 54 Gallery% 65 Achievement% 67 Wizard Run 0 Options --------- ASCII 0 Keyboard 0 Movement Mouse Keybinds 0 Fullscreen 0 Font 16/Smallcaps Map View 76x50 Tactical HUD 1 Map Filters NONE Filters BRIGHTNESS(115)|SATURATION(100)|LOW_CONTRAST(0,16,30) Steam 1 RUN: 198ca584-2db4-4a28-96c7-3eb3e12491b8